bitfinex/quotes_ETHUSD_20241013
["timestamp","ask_amount","ask_price","bid_price","bid_amount"]
[1728854097350,4.06109,2462.4,2462.1,0.08445378]
[1728854097553,8.12225,2462.4,2462.1,0.08445378]
[1728854100092,4.06109,2462.4,2462.1,0.08445378]
[1728854101288,8.12228,2462.4,2462.1,0.08445378]
[1728854101606,8.12227,2462.4,2462.1,0.08445378]
[1728854102587,4.06109,2462.4,2462.1,0.08445378]
[1728854103400,8.12228,2462.4,2462.1,0.08445378]
[1728854104698,4.06109,2462.4,2462.1,0.08445378]
[1728854105609,8.12228,2462.4,2462.1,0.08445378]
[1728854107414,4.06128,2462.3,2462.1,0.08445378]
[1728854108608,4.06109,2462.4,2462.1,0.08445378]
[1728854108824,8.12232,2462.4,2462.1,0.08445378]
[1728854109175,4.06128,2462.3,2462.1,0.08445378]
[1728854113312,1.9993,2462.4,2462.2,0.8287]
[1728854113475,1.9993,2462.4,2462.3,0.08575018]
[1728854113820,1.9993,2462.4,2462.2,0.8287]
[1728854114036,1.9993,2462.4,2462.3,0.8287]
[1728854114315,1.9993,2462.4,2462.3,0.91448901]
[1728854114712,1.9993,2462.4,2462.3,4.97572901]
[1728854114924,1.9993,2462.4,2462.3,7.08666756]
[1728854115076,1.9993,2462.4,2462.3,7.26836038]
[1728854115277,1.9993,2462.4,2462.3,9.06678422]
[1728854115509,1.9993,2462.4,2462.3,8.93960653]
[1728854115709,1.9993,2462.4,2462.3,7.18117516]
[1728854115914,1.9993,2462.4,2462.3,10.43564289]
[1728854116073,1.9993,2462.4,2462.3,10.56281749]
[1728854116979,1.9993,2462.4,2462.3,11.4117701]
[1728854119017,1.9993,2462.4,2462.3,14.4117701]
[1728854119201,1.9993,2462.4,2462.3,16.93106398]
[1728854120113,1.9993,2462.4,2462.3,15.52621696]
[1728854120330,1.9993,2462.4,2462.3,16.72822695]
[1728854120517,1.9993,2462.4,2462.3,16.72821986]
[1728854120705,1.9993,2462.4,2462.3,15.32337284]
[1728854121083,1.9993,2462.4,2462.3,14.04994392]
[1728854121284,1.9993,2462.4,2462.3,15.32337284]
[1728854121582,1.15137923,2462.4,2462.3,15.73552492]
[1728854121778,1.15137923,2462.4,2462.3,15.93898761]
[1728854122120,1.15137923,2462.4,2462.3,17.34383463]
[1728854122280,1.15137923,2462.4,2462.3,16.07040571]
[1728854122628,1.15137923,2462.4,2462.3,15.94133527]
[1728854122916,0.07066106,2463.1,2462.8,0.7648]
[1728854123077,0.07066106,2463.1,2462.9,0.08516774]
[1728854123281,5.55529911,2463.2,2462.9,0.08516774]
[1728854123876,4.05978,2463.2,2462.9,0.08516774]
[1728854124133,4.05974,2463.3,2462.9,4.14541774]
[1728854124331,1.1514,2463.2,2462.9,4.14541774]
[1728854124566,1.1514,2463.2,2463.0,4.8514]
[1728854124768,1.1514,2463.2,2463.0,0.7914]
[1728854125148,1.1514,2463.2,2463.1,0.08516774]
[1728854126761,1.1514,2463.2,2462.9,0.55]
[1728854126971,1.1514,2463.2,2463.1,0.08516774]
[1728854127138,1.1514,2463.2,2462.9,4.61023]
[1728854127453,1.1514,2463.2,2463.0,0.08516774]
[1728854131604,1.1514,2463.2,2463.1,4.85402]
[1728854131772,1.1514,2463.2,2463.1,0.7941]
[1728854132073,1.1514,2463.2,2463.1,0.87902708]
[1728854133187,1.1514,2463.2,2463.1,6.43446619]
[1728854133476,1.1514,2463.2,2463.1,6.98446619]
[1728854133697,1.1514,2463.2,2463.1,8.23967992]
[1728854133895,1.1514,2463.2,2463.1,8.15848938]
[1728854139390,1.1514,2463.2,2463.1,11.15848938]
[1728854139947,1.1514,2463.2,2463.1,11.85883704]
[1728854140488,1.1514,2463.2,2463.1,11.15848938]
[1728854140842,4.84078,2464.1,2463.1,11.85861738]
[1728854141048,4.84078,2464.1,2463.7,0.7582]
[1728854141283,4.84078,2464.1,2463.7,4.81711]
[1728854141682,4.84078,2464.1,2463.8,0.08442252]
[1728854141986,4.84078,2464.1,2463.7,4.81711]
[1728854142151,4.84078,2464.1,2463.9,0.08442252]
[1728854142353,4.84078,2464.1,2463.7,4.81711]
[1728854142547,8.89915,2464.1,2463.8,0.08442252]
[1728854142750,4.05844,2464.0,2463.7,0.7582]
[1728854142965,8.89914,2464.1,2463.8,0.08442252]
[1728854143208,8.89914,2464.1,2463.7,0.7582]
[1728854143406,8.89917,2464.1,2463.9,0.08442252]
[1728854143704,8.89917,2464.1,2463.7,0.7582]
[1728854143873,4.84077,2464.1,2464.0,0.08442252]
[1728854144079,4.84077,2464.1,2463.7,0.7582]
[1728854144277,4.84077,2464.1,2464.0,0.08442252]
[1728854144475,4.84077,2464.1,2463.7,0.7582]
[1728854144978,4.84077,2464.1,2463.8,0.08442252]
[1728854145178,4.84077,2464.1,2463.7,0.7582]
[1728854145388,4.84077,2464.1,2463.9,0.08386378]
[1728854145697,4.84077,2464.1,2463.7,0.7582]
[1728854145876,4.84077,2464.1,2464.0,0.08386378]
[1728854146068,4.84077,2464.1,2463.7,0.7582]
[1728854146269,4.84077,2464.1,2464.0,0.08386378]
[1728854146479,4.84077,2464.1,2463.7,0.7582]
[1728854146692,4.84077,2464.1,2464.0,0.08386378]
[1728854146906,4.84077,2464.1,2463.7,0.7582]
[1728854147067,4.84077,2464.1,2464.0,0.08386378]
[1728854147265,4.84077,2464.1,2463.7,4.81712]
[1728854147468,4.84077,2464.1,2464.0,0.08386378]
[1728854147991,4.84077,2464.1,2463.7,4.81712]
[1728854148190,4.84077,2464.1,2464.0,0.08386378]
[1728854148396,4.84077,2464.1,2463.7,4.81712]
[1728854148702,0.7824,2464.1,2464.0,0.08386378]
[1728854149304,0.7824,2464.1,2463.7,4.81712]
[1728854149510,0.7824,2464.1,2464.0,0.08386378]
[1728854149671,0.7824,2464.1,2463.7,4.81712]
[1728854149873,0.7824,2464.1,2464.0,0.08386378]
[1728854150370,0.7824,2464.1,2463.7,4.81712]
[1728854150571,0.7824,2464.1,2463.8,0.08386378]
[1728854150771,0.7824,2464.1,2463.7,4.81712]
[1728854150973,0.7824,2464.1,2463.8,0.08386378]
[1728854151209,0.7824,2464.1,2463.7,4.81712]
[1728854151811,0.7824,2464.1,2463.8,0.08386378]
[1728854152181,4.84075,2464.1,2463.7,0.7582]
[1728854152375,4.84075,2464.1,2463.8,0.08386378]
[1728854152584,4.84075,2464.1,2463.7,0.7582]
[1728854152901,4.84075,2464.1,2463.8,0.08386378]
[1728854153201,4.84075,2464.1,2463.7,0.7582]
[1728854153368,4.84075,2464.1,2463.9,0.08386378]
[1728854153712,4.84075,2464.1,2463.7,0.7582]
[1728854153863,4.84075,2464.1,2464.0,0.08386378]
[1728854154067,4.84075,2464.1,2463.7,0.7582]
[1728854154305,4.1284622,2464.4,2464.0,4.92539566]
[1728854154602,0.8900322,2464.4,2464.1,0.63354566]
[1728854155231,0.8194,2464.4,2464.1,0.63354566]
[1728854160607,0.8194,2464.4,2464.1,4.69178566]
[1728854162432,6.37274911,2464.4,2464.1,0.08354566]
[1728854162974,6.37274911,2464.4,2464.0,0.55]
[1728854163174,6.37274911,2464.4,2464.1,0.08350687]
[1728854163515,4.05796,2464.3,2464.1,0.08350687]
[1728854164679,6.37271911,2464.4,2464.1,0.08350687]
[1728854165417,4.8772,2464.4,2464.1,0.08350687]
[1728854165618,2.24941911,2464.2,2464.1,0.08350687]
[1728854165795,6.30752911,2464.2,2464.1,0.08350687]
[1728854165990,6.30752911,2464.2,2463.6,4.87112]
[1728854166191,4.05836,2464.1,2463.7,0.08308024]
[1728854166588,4.05844,2464.0,2463.7,0.08308024]
[1728854166800,0.7539,2463.9,2463.7,0.08308024]
[1728854167181,0.7539,2463.9,2463.6,0.55]
[1728854167492,0.7539,2463.9,2463.7,0.08318108]
[1728854168121,0.7539,2463.9,2463.5,5.55466911]
[1728854168299,0.7539,2463.9,2463.8,0.08318108]
[1728854168627,0.7539,2463.9,2463.5,4.05915]
[1728854168925,0.7539,2463.9,2463.8,0.08318108]
[1728854169145,0.7539,2463.9,2463.5,4.05915]
[1728854169285,0.7539,2463.9,2463.8,0.08318108]
[1728854169482,0.7539,2463.9,2463.5,4.05915]
[1728854169678,0.7539,2463.9,2463.8,0.08318108]
[1728854169890,0.7539,2463.9,2463.5,4.05915]
[1728854170095,0.7539,2463.9,2463.8,0.08318108]
[1728854170721,0.7539,2463.9,2463.5,4.05915]
[1728854170922,0.7539,2463.9,2463.8,0.08318108]
[1728854171141,4.8125,2463.9,2463.4,2.30761911]
[1728854171432,4.8125,2463.9,2463.4,4.87145]
[1728854171725,4.8125,2463.9,2463.5,0.08318108]
[1728854172380,4.8125,2463.9,2463.5,4.14241108]
[1728854173623,0.7539,2463.9,2463.5,4.14241108]
[1728854174597,0.7539,2463.9,2463.5,0.08318108]
[1728854174791,0.7539,2463.9,2463.6,4.0591]
[1728854175192,0.7539,2463.9,2463.7,0.08318108]
[1728854175388,0.7778,2464.1,2463.7,4.14209108]
[1728854175591,0.7778,2464.1,2463.7,4.93009108]
[1728854175592,0.07063116,2463.9,2463.7,4.93009108]
[1728854175896,4.83607,2464.1,2463.7,4.93009108]
[1728854179430,0.7778,2464.1,2463.7,4.93009108]
[1728854179597,4.0582,2464.2,2463.8,4.05875]
[1728854179793,4.0582,2464.2,2463.9,0.08356118]
[1728854181147,4.05819,2464.2,2463.9,0.08356118]
[1728854181530,4.05819,2464.2,2463.7,4.84682]
[1728854181731,4.05819,2464.2,2464.0,0.08356118]
[1728854181944,4.05819,2464.2,2463.8,4.05876]
[1728854182157,4.05819,2464.2,2464.1,0.08356118]
[1728854182747,4.05819,2464.2,2463.8,4.05876]
[1728854183224,4.05819,2464.2,2463.9,0.08356118]
[1728854193032,4.87346,2464.3,2463.9,0.08356118]
[1728854193619,6.57708043,2464.3,2463.9,0.08356118]
[1728854193954,6.57708043,2464.3,2463.9,4.14213118]
[1728854194522,4.05811,2464.2,2463.9,0.08356118]
[1728854195362,6.57707043,2464.3,2463.9,4.14215118]
[1728854195541,4.87345,2464.3,2463.9,4.14215118]
[1728854196455,0.07063005,2464.2,2463.9,4.14215118]
[1728854196760,0.07063005,2464.2,2463.9,0.08356118]
[1728854197115,4.12875005,2464.2,2463.9,0.08356118]
[1728854199964,0.07063005,2464.2,2464.1,6.87888911]
[1728854200281,1.70362043,2465.0,2464.6,4.83247]
[1728854200424,0.07059667,2465.0,2464.6,2.27061911]
[1728854200619,4.86873,2465.1,2464.7,0.08337499]
[1728854200880,4.05656,2465.2,2464.7,0.08337499]
[1728854201427,8.11315,2465.2,2464.7,0.08337499]
[1728854202356,4.05656,2465.2,2464.7,0.08337499]
[1728854202761,8.11313,2465.2,2464.7,0.08337499]
[1728854203129,4.05656,2465.2,2464.7,0.08337499]
[1728854203552,4.05663,2465.1,2464.7,0.08337499]
[1728854204173,5.55207911,2465.2,2464.7,4.14064499]
[1728854204500,5.55207911,2465.2,2464.7,0.08337499]
[1728854204802,9.60866911,2465.2,2464.7,0.08337499]
[1728854204926,5.55207911,2465.2,2464.7,4.14065499]
[1728854205130,9.60864911,2465.2,2464.7,5.25079929]
[1728854205332,5.55207911,2465.2,2464.7,5.25079929]
[1728854205536,9.60866911,2465.2,2464.7,5.25079929]
[1728854205935,5.55207911,2465.2,2464.7,5.25079929]
[1728854206441,4.05656,2465.2,2464.8,0.7576]
[1728854206635,5.55207911,2465.2,2464.8,0.7576]
[1728854206974,5.55207911,2465.2,2464.8,1.82745682]
[1728854207146,5.55207911,2465.2,2464.9,0.08337499]
[1728854208745,9.60864911,2465.2,2464.9,0.08337499]
[1728854208951,5.55207911,2465.2,2464.9,0.08337499]
[1728854210578,4.05656,2465.2,2464.9,0.08337499]
[1728854212087,4.12686481,2465.4,2464.9,0.57319949]
[1728854212378,4.05642,2465.3,2464.8,4.81456]
[1728854212675,5.62238392,2465.4,2464.9,4.13901547]
[1728854213038,9.67867392,2465.4,2464.9,4.13901547]
[1728854213241,4.05632,2465.3,2464.9,0.08209547]
[1728854213938,5.62238392,2465.4,2464.9,0.08209547]
[1728854214215,4.05648,2465.2,2464.9,0.08209547]
[1728854216772,5.55191911,2465.3,2465.0,0.8228]
[1728854216974,4.0564,2465.3,2465.0,0.8228]
[1728854217360,4.0564,2465.3,2465.1,0.08209547]
[1728854218384,5.55191911,2465.3,2465.1,0.08209547]
[1728854219893,4.0564,2465.3,2465.1,0.08209547]
[1728854221074,4.05646,2465.2,2465.1,0.08209547]
[1728854221370,5.55197911,2465.2,2465.1,0.08209547]
[1728854221685,4.05646,2465.2,2464.8,0.7596]
[1728854221887,4.05646,2465.2,2465.1,0.08202571]
[1728854222204,4.05646,2465.2,2465.1,0.08195594]
[1728854222778,4.05646,2465.2,2464.8,0.7596]
[1728854223119,4.05646,2465.2,2464.9,0.08195594]
[1728854223776,4.12706808,2465.2,2464.9,0.08195594]
[1728854229983,0.07060808,2465.2,2464.9,0.08195594]
[1728854230378,4.12708808,2465.2,2464.9,0.08195594]
[1728854240200,0.07060808,2465.2,2465.1,1.49551911]
[1728854240389,0.07060808,2465.2,2465.1,6.95270629]
[1728854240597,4.05574,2465.7,2465.1,6.95270629]
[1728854240838,0.07058787,2465.2,2465.1,6.95270629]
[1728854241132,4.05598,2465.5,2465.1,7.07974255]
[1728854241300,8.11146,2465.7,2465.2,4.18349626]
[1728854241504,8.11146,2465.7,2465.2,4.05646]
[1728854241726,8.11146,2465.7,2465.1,6.95270629]
[1728854241727,4.05581,2465.6,2465.3,0.08190167]
[1728854242142,4.05581,2465.6,2465.1,6.87077362]
[1728854242434,4.05581,2465.6,2465.2,1.62255471]
[1728854242735,4.05581,2465.6,2465.3,0.08190167]
[1728854242931,4.05572,2465.7,2465.3,0.08190167]
[1728854243138,4.05593,2465.6,2465.1,6.30725911]
[1728854243302,4.05593,2465.6,2465.4,0.08190167]
[1728854243502,4.05593,2465.6,2465.1,6.93798502]
[1728854243808,4.05593,2465.6,2465.2,0.12703552]
[1728854244018,4.05593,2465.6,2465.3,0.20893719]
[1728854244322,4.05572,2465.7,2465.4,0.12703398]
[1728854244521,4.05572,2465.7,2465.3,0.08190167]
[1728854244722,4.05572,2465.7,2465.4,0.12703376]
[1728854245040,8.11145,2465.7,2465.4,0.08190167]
[1728854245338,8.11145,2465.7,2465.5,0.12703339]
[1728854245632,8.11145,2465.7,2465.5,0.08190167]
[1728854245838,4.05572,2465.7,2465.2,5.55191911]
[1728854246043,8.11146,2465.7,2465.3,2.22300142]
[1728854246337,8.11146,2465.7,2465.4,0.12703125]
[1728854246515,8.11146,2465.7,2465.5,0.12703125]
[1728854246842,8.11146,2465.7,2465.6,0.08133593]
[1728854247003,4.05572,2465.7,2465.3,0.7869]
[1728854247204,4.05572,2465.7,2465.4,0.20836683]
[1728854247455,8.11148,2465.7,2465.5,0.1270309]
[1728854247731,8.11148,2465.7,2465.3,1.18716342]
[1728854247931,4.0558,2465.6,2465.4,0.127031]
[1728854248139,4.0558,2465.6,2465.5,0.127031]
[1728854248514,4.0558,2465.6,2465.3,0.7869]
[1728854248715,4.0558,2465.6,2465.4,0.12703321]
[1728854248903,4.0558,2465.6,2465.3,0.7869]
[1728854249102,4.0558,2465.6,2465.4,0.1270334]
[1728854249310,4.0558,2465.6,2465.3,0.7869]
[1728854249623,4.05572,2465.7,2465.4,0.12703289]
[1728854249930,4.05572,2465.7,2465.3,0.7869]
[1728854250131,8.11151,2465.7,2465.4,0.12703209]
[1728854250316,8.11151,2465.7,2465.3,0.7869]
[1728854250645,4.05581,2465.6,2465.4,0.12703148]
[1728854250935,4.05581,2465.6,2465.3,0.7869]
[1728854251236,4.05581,2465.6,2465.4,0.12703135]
[1728854251401,4.05581,2465.6,2465.3,1.8895085]
[1728854251602,4.05581,2465.6,2465.4,0.12703176]
[1728854251803,4.05581,2465.6,2465.3,0.7869]
[1728854252114,4.05581,2465.6,2465.4,0.12703179]
[1728854252310,4.05581,2465.6,2465.3,0.7869]
[1728854252646,4.05566,2465.7,2465.4,0.12703161]
[1728854252941,1.77420883,2465.9,2465.5,0.12703161]
[1728854253153,0.0705884,2465.9,2465.6,4.95748115]
[1728854253328,0.0705884,2465.9,2465.7,1.17790318]
[1728854253633,0.0705884,2465.9,2465.7,1.05088203]
[1728854253839,0.0705884,2465.9,2465.6,0.7748]
[1728854254132,0.0705884,2465.9,2465.7,0.12701146]
[1728854254333,0.0705884,2465.9,2465.6,0.7748]
[1728854254537,0.0705884,2465.9,2465.7,0.12701146]
[1728854254696,0.0705884,2465.9,2465.6,0.7748]
[1728854254898,0.0705884,2465.9,2465.7,0.12701129]
[1728854255099,0.0705884,2465.9,2465.6,1.81300291]
[1728854255299,0.0705884,2465.9,2465.7,0.12701146]
[1728854255496,0.0705884,2465.9,2465.6,5.86872291]
[1728854255734,0.0705884,2465.9,2465.7,0.12701097]
[1728854255924,0.0705884,2465.9,2465.6,5.86872291]
[1728854256128,0.0705884,2465.9,2465.7,0.12701117]
[1728854256303,0.0705884,2465.9,2465.6,1.81300291]
[1728854256502,0.0705884,2465.9,2465.7,0.12700727]
[1728854256697,0.0705884,2465.9,2465.6,1.81300291]
[1728854256901,0.0705884,2465.9,2465.7,0.12700722]
[1728854257126,0.0705884,2465.9,2465.6,1.81300291]
[1728854257301,0.0705884,2465.9,2465.7,0.12700716]
[1728854257502,0.0705884,2465.9,2465.6,1.81300291]
[1728854257703,0.0705884,2465.9,2465.7,0.12701086]
[1728854257909,0.0705884,2465.9,2465.6,1.81300291]
[1728854258144,0.0705884,2465.9,2465.8,0.0812507]
[1728854258438,0.0705884,2465.9,2465.8,0.0810105]
[1728854258603,0.0705884,2465.9,2465.6,1.81300291]
[1728854258804,0.0705884,2465.9,2465.7,0.20802104]
[1728854259040,0.0705884,2465.9,2465.7,0.0810105]
[1728854261642,4.81447,2465.8,2465.7,0.0810105]
[1728854261838,4.81447,2465.8,2465.4,0.20322202]
[1728854262040,4.81447,2465.8,2465.3,6.37141911]
[1728854262041,4.81447,2465.8,2465.5,0.20802587]
[1728854262343,4.81447,2465.8,2465.6,0.12701537]
[1728854262549,4.81447,2465.8,2465.5,0.0810105]
[1728854262753,4.81447,2465.8,2465.4,0.55]
[1728854262913,4.81447,2465.8,2465.6,0.0810105]
[1728854263132,4.81447,2465.8,2465.4,0.55]
[1728854263459,4.81447,2465.8,2465.5,0.12701512]
[1728854263650,4.81447,2465.8,2465.6,0.0810105]
[1728854263849,4.81447,2465.8,2465.4,1.67316698]
[1728854264145,4.81447,2465.8,2465.5,0.20802538]
[1728854264326,4.81447,2465.8,2465.5,0.0810105]
[1728854268672,0.759,2465.8,2465.5,0.0810105]
[1728854278092,0.759,2465.8,2465.6,0.127016]
[1728854278286,0.759,2465.8,2465.7,0.08104923]
[1728854278449,0.759,2465.8,2465.4,6.18268344]
[1728854278650,0.759,2465.8,2465.5,0.20806491]
[1728854278851,0.759,2465.8,2465.6,0.12701568]
[1728854279045,0.759,2465.8,2465.4,7.2328315]
[1728854279251,0.759,2465.8,2465.5,0.20806439]
[1728854279552,0.759,2465.8,2465.6,0.12701516]
[1728854279781,0.759,2465.8,2465.5,0.08104923]
[1728854279991,0.759,2465.8,2465.6,0.12701566]
[1728854280195,0.759,2465.8,2465.6,0.08104923]
[1728854280548,0.759,2465.8,2465.4,7.2328315]
[1728854280748,0.759,2465.8,2465.7,0.08104923]
[1728854280984,0.759,2465.8,2465.5,0.12701565]
[1728854280985,0.759,2465.8,2465.4,10.23871329]
[1728854281192,0.759,2465.8,2465.7,0.08104923]
[1728854281494,0.759,2465.8,2465.4,10.15759911]
[1728854281663,0.759,2465.8,2465.5,0.41128324]
[1728854281854,0.759,2465.8,2465.6,0.12701308]
[1728854282057,0.759,2465.8,2465.4,10.15758911]
[1728854282380,0.759,2465.8,2465.5,0.20806582]
[1728854282697,0.759,2465.8,2465.6,0.12701659]
[1728854282903,0.759,2465.8,2465.5,0.08104923]
[1728854283057,0.759,2465.8,2465.6,0.12701657]
[1728854283405,6.30998911,2465.8,2465.7,0.08104923]
[1728854283565,7.37187886,2465.8,2465.7,0.08104923]
[1728854283895,4.83297,2465.7,2465.3,0.20324038]
[1728854284096,4.83297,2465.7,2465.4,0.1270222]
[1728854284257,4.83297,2465.7,2465.2,9.60819911]
[1728854284258,4.83297,2465.7,2465.5,0.1270222]
[1728854284451,0.07058891,2465.6,2465.3,4.05629]
[1728854284656,0.07058891,2465.6,2465.4,0.33025546]
[1728854284858,0.07058891,2465.6,2465.5,0.12702133]
[1728854285794,0.07058891,2465.6,2465.5,0.12702567]
[1728854286999,0.07058891,2465.6,2465.5,0.33026116]
[1728854287961,0.07058891,2465.6,2465.5,0.41116321]
[1728854289107,0.07058891,2465.6,2465.5,0.08090205]
[1728854289410,0.07058891,2465.6,2465.5,4.46712259]
[1728854289709,0.07058891,2465.6,2465.5,7.00776482]
[1728854290260,0.07058891,2465.6,2465.5,5.51224571]
[1728854292103,0.8002,2465.9,2465.5,5.51224571]
[1728854292309,0.8002,2465.9,2465.6,0.33025054]
[1728854292467,0.8002,2465.9,2465.7,0.12701944]
[1728854292667,0.8002,2465.9,2465.5,4.05597]
[1728854292967,0.8002,2465.9,2465.6,0.41120177]
[1728854293182,0.8002,2465.9,2465.7,0.12701749]
[1728854293383,0.8002,2465.9,2465.6,0.08095629]
[1728854293384,0.8002,2465.9,2465.8,0.12701749]
[1728854293582,5.88138203,2466.1,2465.8,0.12701749]
[1728854293766,5.88138203,2466.1,2465.8,0.08095629]
[1728854294106,4.1777616,2466.1,2465.9,0.12701123]
[1728854294295,5.88138203,2466.1,2465.7,4.8112]
[1728854294488,5.88138203,2466.1,2465.8,0.20793057]
[1728854294679,5.88138203,2466.1,2465.9,0.12701304]
[1728854294875,5.88138203,2466.1,2465.7,4.8112]
[1728854295062,5.88138203,2466.1,2465.8,0.12701138]
[1728854295263,5.88138203,2466.1,2465.9,0.12701138]
[1728854295458,5.88138203,2466.1,2465.7,4.8112]
[1728854295691,5.88138203,2466.1,2465.8,0.20792899]
[1728854295908,5.88138203,2466.1,2465.9,0.12701146]
[1728854296158,0.7779,2465.9,2465.6,4.05572]
[1728854296364,0.7779,2465.9,2465.7,0.33022805]
[1728854296603,0.7779,2465.9,2465.8,0.12701079]
[1728854297360,0.7779,2465.9,2465.8,0.33022775]
[1728854297758,5.88138203,2466.1,2465.8,0.33022775]
[1728854297978,5.88138203,2466.1,2465.9,0.12701079]
[1728854298179,5.88138203,2466.1,2466.0,0.12701079]
[1728854301408,9.58804136,2466.1,2466.0,0.12701079]
[1728854301611,10.01580724,2466.1,2466.0,0.12701079]
[1728854301768,4.84012,2465.7,2465.3,1.6241517]
[1728854301966,4.84012,2465.7,2465.4,2.64439386]
[1728854302277,4.0558,2465.6,2465.5,0.58429287]
[1728854302664,6.59046302,2465.6,2465.5,0.12702019]
[1728854302866,5.09494391,2465.6,2465.5,0.20522795]
[1728854303665,6.80085727,2465.6,2465.5,0.20522795]
[1728854304093,5.09494391,2465.6,2465.5,0.20522795]
[1728854304688,5.09494391,2465.6,2465.5,0.07820776]
[1728854305098,5.09494391,2465.6,2465.1,0.7752]
[1728854305099,4.05606,2465.5,2465.1,0.7752]
[1728854305307,4.05606,2465.5,2465.2,0.33029378]
[1728854305480,4.05613,2465.4,2465.3,0.12703607]
[1728854308692,4.05613,2465.4,2465.3,0.1270362]
[1728854309808,4.84893,2465.4,2465.3,0.1270362]
[1728854312389,4.91949927,2465.4,2465.3,0.1270362]
[1728854312601,0.86336927,2465.4,2465.3,0.1270362]
[1728854316112,0.7928,2465.4,2465.3,0.1270362]
[1728854317902,0.7928,2465.4,2465.3,0.20546059]
[1728854318931,0.7928,2465.4,2465.3,0.07842439]
[1728854319098,0.7928,2465.4,2465.3,0.12703435]
[1728854319302,0.7928,2465.4,2465.3,0.20563669]
[1728854319505,0.7928,2465.4,2465.3,0.07860234]
[1728854319819,0.7928,2465.4,2465.3,0.12703613]
[1728854319987,0.7928,2465.4,2465.3,0.07860234]
[1728854320186,0.7928,2465.4,2465.3,0.12703346]
[1728854320500,0.7928,2465.4,2465.3,0.07860234]
[1728854320828,0.7928,2465.4,2465.0,9.60891911]
[1728854321019,0.7928,2465.4,2465.3,0.07860234]
[1728854321891,0.7928,2465.4,2465.0,9.60890911]
[1728854322233,0.7928,2465.4,2465.1,0.20563772]
[1728854322429,0.7928,2465.4,2465.2,0.12703538]
[1728854322631,0.7928,2465.4,2465.3,0.12703414]
[1728854322832,0.7928,2465.4,2465.3,0.20563648]
[1728854323707,0.7928,2465.4,2465.3,0.07860234]
[1728854323907,0.7928,2465.4,2465.0,8.11341]
[1728854324109,0.7928,2465.4,2465.1,0.40889438]
[1728854324309,0.7928,2465.4,2465.2,0.1270354]
[1728854324510,0.7928,2465.4,2465.1,0.07860234]
[1728854324722,0.7928,2465.4,2465.2,0.12703635]
[1728854325011,0.7928,2465.4,2465.0,5.18448808]
[1728854325222,0.7928,2465.4,2465.3,0.07860234]
[1728854325418,0.7928,2465.4,2465.0,4.05668]
[1728854325617,0.7928,2465.4,2465.3,0.07860234]
[1728854325820,0.7928,2465.4,2465.0,4.05668]
[1728854326009,0.7928,2465.4,2465.1,0.12703758]
[1728854326218,1.49551911,2465.3,2465.2,0.12703758]
[1728854326431,4.05646,2465.2,2465.1,0.07860234]
[1728854326653,4.69090791,2465.2,2465.1,0.12704496]
[1728854326811,4.69090791,2465.2,2465.1,0.20573986]
[1728854327744,4.69090791,2465.2,2465.1,0.07869522]
[1728854327907,5.47590791,2465.2,2465.1,0.20574185]
[1728854328107,6.97142702,2465.2,2465.1,0.20584246]
[1728854328306,6.97142702,2465.2,2465.1,0.07879583]
[1728854328551,2.12996702,2465.2,2464.5,0.8072]
[1728854328847,4.05714,2464.8,2464.6,0.3303675]
[1728854329044,4.05714,2464.8,2464.7,0.12706442]
[1728854329363,5.55238911,2465.0,2464.7,0.12706442]
[1728854329364,4.05687,2465.0,2464.7,0.12706442]
[1728854329510,4.05687,2465.0,2464.8,0.12706442]
[1728854329715,4.05687,2465.0,2464.7,1.49551911]
[1728854329918,4.05687,2465.0,2464.8,0.20600215]
[1728854330258,4.05687,2465.0,2464.8,0.07894288]
[1728854330549,8.11375,2465.0,2464.8,0.07894288]
[1728854330777,8.11375,2465.0,2464.9,0.07894288]
[1728854330975,8.11375,2465.0,2464.6,1.49551911]
[1728854331149,4.05687,2465.0,2464.9,0.07894288]
[1728854331353,4.05687,2465.0,2464.6,1.49551911]
[1728854331677,4.05698,2464.9,2464.7,0.12705948]
[1728854331885,4.05698,2464.9,2464.5,6.36030911]
[1728854332043,4.05698,2464.9,2464.6,0.33035353]
[1728854332244,4.05698,2464.9,2464.7,0.12705905]
[1728854332557,4.05698,2464.9,2464.5,7.54274202]
[1728854332742,4.05698,2464.9,2464.6,0.12705924]
[1728854333050,4.05698,2464.9,2464.7,0.12705924]
[1728854333251,4.05698,2464.9,2464.7,0.07894288]
[1728854333703,4.05698,2464.9,2464.5,7.54274202]
[1728854333839,4.05698,2464.9,2464.8,0.07894288]
[1728854334040,4.05698,2464.9,2464.5,7.54274202]
[1728854334240,4.05698,2464.9,2464.8,0.07894288]
[1728854334440,4.05698,2464.9,2464.5,7.54274202]
[1728854334752,4.05698,2464.9,2464.6,0.12705905]
[1728854334955,4.05698,2464.9,2464.7,0.20600193]
[1728854335165,4.05698,2464.9,2464.7,0.07894288]
[1728854335678,4.05698,2464.9,2464.5,7.54274202]
[1728854335980,4.05698,2464.9,2464.6,0.12705884]
[1728854336175,4.05698,2464.9,2464.7,0.12705884]
[1728854336343,4.05698,2464.9,2464.6,0.07894288]
[1728854336658,4.05698,2464.9,2464.7,0.12705934]
[1728854336854,4.05698,2464.9,2464.6,0.07894288]
[1728854337058,4.05698,2464.9,2464.7,0.12705892]
[1728854337369,4.05698,2464.9,2464.7,0.07894288]
[1728854337884,4.05698,2464.9,2464.5,7.54274202]
[1728854338077,4.05698,2464.9,2464.8,0.07894288]
[1728854338302,4.05698,2464.9,2464.5,6.36030911]
[1728854338596,4.05698,2464.9,2464.6,0.1270573]
[1728854338898,4.05698,2464.9,2464.7,0.1270573]
[1728854339192,4.05698,2464.9,2464.5,6.36030911]
[1728854339500,4.05698,2464.9,2464.8,0.07894288]
[1728854339994,4.05698,2464.9,2464.5,7.40212102]
[1728854340198,4.05698,2464.9,2464.8,0.07894288]
[1728854340399,8.11376,2465.0,2464.5,7.40212102]
[1728854340693,4.05663,2465.1,2464.8,0.88794288]
[1728854340869,4.05663,2465.1,2464.8,0.809]
[1728854341070,4.05663,2465.1,2464.9,0.07922148]
[1728854342278,4.05679,2465.0,2464.9,0.07922148]
[1728854342595,4.05663,2465.1,2464.9,0.07922148]
[1728854352315,8.11339,2465.1,2464.9,0.07922148]
[1728854355753,4.05663,2465.1,2464.9,0.07922148]
[1728854356655,8.11337,2465.1,2464.9,0.07922148]